[Event "December 19 Early 2023"]
[Site "https://www.chess.com"]
[Date "2023.12.19"]
[Round "10"]
[White "Serban, Cristian-Stefan"]
[Black "Hajiyev, Kanan"]
[Result "0-1"]
[Board "75"]
[TimeControl "180+1"]
[WhiteFideId "1241443"]
[BlackFideId "13404148"]
[WhiteElo "2040"]
[BlackElo "2102"]
[WhiteTeam "ROU"]
[BlackTeam "AZE"]
[WhiteClock "0:00:00"]
[BlackClock "0:01:04"]

1. d4 {[%clk 0:03:00]}  d5 {[%clk 0:02:58]} 2. Bf4 {[%clk 0:03:01]}  c5 {[%clk 0:02:57]} 3. e3 {[%clk 0:03:01]}  cxd4 {[%clk 0:02:58]} 4. exd4 {[%clk 0:03:01]}  Nc6 {[%clk 0:02:59]} 5. c3 {[%clk 0:03:01]}  Nf6 {[%clk 0:03:00]} 6. Bd3 {[%clk 0:03:01]}  g6 {[%clk 0:02:57]} 7. Nf3 {[%clk 0:03:00]}  Bg7 {[%clk 0:02:57]} 8. O-O {[%clk 0:02:59]}  O-O {[%clk 0:02:58]} 9. Nbd2 {[%clk 0:03:00]}  Bf5 {[%clk 0:02:58]} 10. Qc2 {[%clk 0:02:44]}  Bxd3 {[%clk 0:02:58]} 11. Qxd3 {[%clk 0:02:45]}  Nh5 {[%clk 0:02:54]} 12. Bg5 {[%clk 0:02:42]}  Qc7 {[%clk 0:02:54]} 13. Rfe1 {[%clk 0:02:37]}  Rfe8 {[%clk 0:02:50]} 14. Nf1 {[%clk 0:02:03]}  Rab8 {[%clk 0:02:49]} 15. a4 {[%clk 0:02:02]}  Na5 {[%clk 0:02:44]} 16. N1d2 {[%clk 0:01:55]}  Rbc8 {[%clk 0:02:27]} 17. Rac1 {[%clk 0:01:10]}  e6 {[%clk 0:02:21]} 18. g3 {[%clk 0:01:00]}  h6 {[%clk 0:02:17]} 19. Be3 {[%clk 0:01:00]}  Nc4 {[%clk 0:02:15]} 20. Nxc4 {[%clk 0:00:59]}  Qxc4 {[%clk 0:02:16]} 21. Qxc4 {[%clk 0:00:57]}  Rxc4 {[%clk 0:02:17]} 22. Ra1 {[%clk 0:00:51]}  Rec8 {[%clk 0:02:16]} 23. Nd2 {[%clk 0:00:46]}  R4c7 {[%clk 0:02:15]} 24. a5 {[%clk 0:00:46]}  g5 {[%clk 0:02:11]} 25. g4 {[%clk 0:00:43]}  Nf6 {[%clk 0:02:10]} 26. h3 {[%clk 0:00:44]}  Bf8 {[%clk 0:02:08]} 27. Kg2 {[%clk 0:00:42]}  Bd6 {[%clk 0:02:07]} 28. f3 {[%clk 0:00:42]}  Kg7 {[%clk 0:02:08]} 29. h4 {[%clk 0:00:41]}  Nh7 {[%clk 0:02:01]} 30. Rh1 {[%clk 0:00:30]}  f6 {[%clk 0:01:48]} 31. hxg5 {[%clk 0:00:29]}  hxg5 {[%clk 0:01:47]} 32. Rh5 {[%clk 0:00:29]}  Nf8 {[%clk 0:01:37]} 33. Rf1 {[%clk 0:00:20]}  Rc6 {[%clk 0:01:37]} 34. f4 {[%clk 0:00:18]}  gxf4 {[%clk 0:01:33]} 35. Bxf4 {[%clk 0:00:19]}  Bxf4 {[%clk 0:01:31]} 36. Rxf4 {[%clk 0:00:20]}  Ng6 {[%clk 0:01:31]} 37. Rf2 {[%clk 0:00:12]}  Ra6 {[%clk 0:01:31]} 38. Nb3 {[%clk 0:00:11]}  b6 {[%clk 0:01:29]} 39. axb6 {[%clk 0:00:12]}  axb6 {[%clk 0:01:29]} 40. Nc1 {[%clk 0:00:10]}  Ra1 {[%clk 0:01:25]} 41. Nd3 {[%clk 0:00:10]}  Rd1 {[%clk 0:01:23]} 42. Rh3 {[%clk 0:00:10]}  Rh8 {[%clk 0:01:22]} 43. Rxh8 {[%clk 0:00:06]}  Kxh8 {[%clk 0:01:23]} 44. Nf4 {[%clk 0:00:06]}  Nxf4+ {[%clk 0:01:16]} 45. Rxf4 {[%clk 0:00:07]}  Kg7 {[%clk 0:01:15]} 46. Rf2 {[%clk 0:00:08]}  Kg6 {[%clk 0:01:15]} 47. Kf3 {[%clk 0:00:04]}  Rd3+ {[%clk 0:01:13]} 48. Kf4 {[%clk 0:00:02]}  Rh3 {[%clk 0:01:11]} 49. Re2 {[%clk 0:00:03]}  Kf7 {[%clk 0:01:10]} 50. Rc2 {[%clk 0:00:02]}  Rh1 {[%clk 0:01:09]} 51. Kg3 {[%clk 0:00:02]}  Rg1+ {[%clk 0:01:09]} 52. Kf3 {[%clk 0:00:03]}  Rf1+ {[%clk 0:01:06]} 53. Kg2 {[%clk 0:00:03]}  Re1 {[%clk 0:01:06]} 54. Kf2 {[%clk 0:00:03]}  Re4 {[%clk 0:01:06]} 55. Kf3 {[%clk 0:00:03]}  Kg6 {[%clk 0:01:07]} 56. Rh2 {[%clk 0:00:04]}  Kg5 {[%clk 0:01:06]} 57. Rh5+ {[%clk 0:00:04]}  Kg6 {[%clk 0:01:07]} 58. Rh2 {[%clk 0:00:05]}  b5 {[%clk 0:01:07]} 59. Rg2 {[%clk 0:00:04]}  b4 {[%clk 0:01:06]} 60. Rh2 {[%clk 0:00:02]}  b3 {[%clk 0:01:06]} 61. Rh5 {[%clk 0:00:00]}  f5 {[%clk 0:01:04]} 0-1

[Event "December 19 Early 2023"]
[Site "https://www.chess.com"]
[Date "2023.12.19"]
[Round "10"]
[White "Deng, Henry"]
[Black "Liu, Casper"]
[Result "1-0"]
[Board "76"]
[TimeControl "180+1"]
[WhiteFideId "30965454"]
[BlackFideId "1454153"]
[WhiteElo "2580"]
[BlackElo "2221"]
[WhiteTeam "USA"]
[BlackTeam "DEN"]
[WhiteClock "0:02:05"]
[BlackClock "0:01:19"]

1. e4 {[%clk 0:03:00]}  c6 {[%clk 0:02:54]} 2. d4 {[%clk 0:02:58]}  d5 {[%clk 0:02:55]} 3. Nd2 {[%clk 0:02:58]}  dxe4 {[%clk 0:02:55]} 4. Nxe4 {[%clk 0:02:59]}  Nd7 {[%clk 0:02:55]} 5. Nf3 {[%clk 0:02:56]}  Ngf6 {[%clk 0:02:55]} 6. Ng3 {[%clk 0:02:54]}  g6 {[%clk 0:02:52]} 7. Bd3 {[%clk 0:02:49]}  Bg7 {[%clk 0:02:52]} 8. O-O {[%clk 0:02:45]}  O-O {[%clk 0:02:53]} 9. Bg5 {[%clk 0:02:44]}  b6 {[%clk 0:02:49]} 10. Qd2 {[%clk 0:02:43]}  Bb7 {[%clk 0:02:48]} 11. Bh6 {[%clk 0:02:43]}  c5 {[%clk 0:02:48]} 12. Bxg7 {[%clk 0:02:43]}  Kxg7 {[%clk 0:02:49]} 13. c3 {[%clk 0:02:36]}  Bxf3 {[%clk 0:02:46]} 14. gxf3 {[%clk 0:02:36]}  e5 {[%clk 0:02:41]} 15. dxc5 {[%clk 0:02:25]}  Nxc5 {[%clk 0:02:41]} 16. Rad1 {[%clk 0:02:26]}  Qd7 {[%clk 0:02:36]} 17. Bb1 {[%clk 0:02:16]}  Qh3 {[%clk 0:02:35]} 18. Qg5 {[%clk 0:02:11]}  Nfd7 {[%clk 0:01:19]} 19. Bf5 {[%clk 0:02:05]} 1-0

[Event "December 19 Early 2023"]
[Site "https://www.chess.com"]
[Date "2023.12.19"]
[Round "10"]
[White "Estrada Nieto, Julian"]
[Black "Borawski, Jakub"]
[Result "1-0"]
[Board "78"]
[TimeControl "180+1"]
[WhiteFideId "5101018"]
[BlackFideId "1143000"]
[WhiteElo "2161"]
[BlackElo "2052"]
[WhiteTeam "ESP"]
[BlackTeam "POL"]
[WhiteClock "0:00:48"]
[BlackClock "0:00:01"]

1. e4 {[%clk 0:03:00]}  e5 {[%clk 0:03:00]} 2. Nf3 {[%clk 0:03:00]}  Nc6 {[%clk 0:03:00]} 3. Bb5 {[%clk 0:03:00]}  a6 {[%clk 0:03:00]} 4. Ba4 {[%clk 0:03:00]}  Nf6 {[%clk 0:03:00]} 5. O-O {[%clk 0:03:01]}  Be7 {[%clk 0:03:00]} 6. Re1 {[%clk 0:03:00]}  b5 {[%clk 0:03:00]} 7. Bb3 {[%clk 0:03:01]}  d6 {[%clk 0:03:01]} 8. a4 {[%clk 0:02:58]}  b4 {[%clk 0:02:59]} 9. d3 {[%clk 0:02:54]}  O-O {[%clk 0:02:56]} 10. Nbd2 {[%clk 0:02:55]}  Na5 {[%clk 0:02:42]} 11. Ba2 {[%clk 0:02:54]}  c5 {[%clk 0:02:42]} 12. Nc4 {[%clk 0:02:53]}  Nxc4 {[%clk 0:02:41]} 13. Bxc4 {[%clk 0:02:53]}  a5 {[%clk 0:02:42]} 14. Bg5 {[%clk 0:02:50]}  h6 {[%clk 0:02:39]} 15. Bxf6 {[%clk 0:02:50]}  Bxf6 {[%clk 0:02:40]} 16. Nd2 {[%clk 0:02:48]}  Qe7 {[%clk 0:02:31]} 17. Nf1 {[%clk 0:02:47]}  Be6 {[%clk 0:02:31]} 18. Ne3 {[%clk 0:02:47]}  g6 {[%clk 0:02:29]} 19. Nd5 {[%clk 0:02:43]}  Bxd5 {[%clk 0:02:30]} 20. Bxd5 {[%clk 0:02:43]}  Ra7 {[%clk 0:02:28]} 21. Qg4 {[%clk 0:02:39]}  Kh7 {[%clk 0:02:25]} 22. c3 {[%clk 0:02:36]}  Bg7 {[%clk 0:02:21]} 23. cxb4 {[%clk 0:02:28]}  cxb4 {[%clk 0:02:14]} 24. Rac1 {[%clk 0:02:20]}  Rc7 {[%clk 0:02:14]} 25. Rc4 {[%clk 0:02:09]}  f5 {[%clk 0:02:05]} 26. exf5 {[%clk 0:01:56]}  gxf5 {[%clk 0:02:06]} 27. Qh5 {[%clk 0:01:56]}  Rxc4 {[%clk 0:02:02]} 28. Bxc4 {[%clk 0:01:52]}  Qg5 {[%clk 0:01:44]} 29. Qe2 {[%clk 0:01:44]}  Re8 {[%clk 0:01:22]} 30. Bd5 {[%clk 0:01:40]}  Kh8 {[%clk 0:01:10]} 31. g3 {[%clk 0:01:40]}  Rc8 {[%clk 0:01:01]} 32. h4 {[%clk 0:01:36]}  Qg6 {[%clk 0:00:55]} 33. Kg2 {[%clk 0:01:33]}  Rc5 {[%clk 0:00:51]} 34. Bb3 {[%clk 0:01:26]}  d5 {[%clk 0:00:48]} 35. d4 {[%clk 0:01:05]}  exd4 {[%clk 0:00:45]} 36. Qe7 {[%clk 0:01:05]}  Rc8 {[%clk 0:00:30]} 37. Re6 {[%clk 0:01:04]}  Qg4 {[%clk 0:00:19]} 38. Bxd5 {[%clk 0:01:02]}  f4 {[%clk 0:00:13]} 39. Qf7 {[%clk 0:00:52]}  Rf8 {[%clk 0:00:11]} 40. Re8 {[%clk 0:00:49]}  Rxe8 {[%clk 0:00:03]} 41. Qxe8+ {[%clk 0:00:48]}  Kh7 {[%clk 0:00:04]} 42. Bg8+ {[%clk 0:00:47]}  Kh8 {[%clk 0:00:01]} 43. Be6+ {[%clk 0:00:48]} 1-0

[Event "December 19 Early 2023"]
[Site "https://www.chess.com"]
[Date "2023.12.19"]
[Round "10"]
[White "Blokhin, Sofia"]
[Black "Cattaneo, Marco"]
[Result "1/2-1/2"]
[Board "79"]
[TimeControl "180+1"]
[WhiteFideId "4508190"]
[BlackFideId "878332"]
[WhiteElo "1916"]
[BlackElo "2186"]
[WhiteTeam "EST"]
[BlackTeam "ITA"]
[WhiteClock "0:00:06"]
[BlackClock "0:00:07"]

1. d4 {[%clk 0:03:00]}  g6 {[%clk 0:03:00]} 2. e4 {[%clk 0:02:59]}  Bg7 {[%clk 0:03:00]} 3. Nc3 {[%clk 0:02:59]}  c6 {[%clk 0:03:01]} 4. f3 {[%clk 0:02:59]}  d5 {[%clk 0:03:01]} 5. Be3 {[%clk 0:02:57]}  dxe4 {[%clk 0:03:01]} 6. fxe4 {[%clk 0:02:57]}  Nf6 {[%clk 0:03:01]} 7. Nf3 {[%clk 0:02:51]}  O-O {[%clk 0:02:59]} 8. Qd2 {[%clk 0:02:51]}  b5 {[%clk 0:02:57]} 9. a3 {[%clk 0:02:50]}  a5 {[%clk 0:02:56]} 10. e5 {[%clk 0:02:47]}  Nd5 {[%clk 0:02:48]} 11. Nxd5 {[%clk 0:02:46]}  Qxd5 {[%clk 0:02:49]} 12. Bh6 {[%clk 0:02:36]}  Bf5 {[%clk 0:02:45]} 13. Bxg7 {[%clk 0:02:34]}  Kxg7 {[%clk 0:02:46]} 14. h4 {[%clk 0:02:30]}  h5 {[%clk 0:02:33]} 15. Bd3 {[%clk 0:02:27]}  Bxd3 {[%clk 0:02:32]} 16. Qxd3 {[%clk 0:02:27]}  Nd7 {[%clk 0:02:20]} 17. O-O {[%clk 0:02:24]}  c5 {[%clk 0:02:00]} 18. c3 {[%clk 0:02:23]}  cxd4 {[%clk 0:01:54]} 19. cxd4 {[%clk 0:02:20]}  Rac8 {[%clk 0:01:49]} 20. Rac1 {[%clk 0:02:17]}  Nb6 {[%clk 0:01:42]} 21. Ng5 {[%clk 0:02:10]}  Rxc1 {[%clk 0:01:39]} 22. Rxc1 {[%clk 0:02:08]}  Nc4 {[%clk 0:01:36]} 23. b3 {[%clk 0:01:59]}  Nxe5 {[%clk 0:01:29]} 24. Qe3 {[%clk 0:01:31]}  Ng4 {[%clk 0:01:26]} 25. Qxe7 {[%clk 0:01:21]}  Qxd4+ {[%clk 0:01:26]} 26. Kh1 {[%clk 0:01:15]}  Nf2+ {[%clk 0:01:22]} 27. Kh2 {[%clk 0:01:06]}  Ng4+ {[%clk 0:00:42]} 28. Kh1 {[%clk 0:00:59]}  Kg8 {[%clk 0:00:35]} 29. Rf1 {[%clk 0:00:48]}  Nf2+ {[%clk 0:00:35]} 30. Kh2 {[%clk 0:00:45]}  Qxh4+ {[%clk 0:00:30]} 31. Kg1 {[%clk 0:00:45]}  Ng4 {[%clk 0:00:28]} 32. Rxf7 {[%clk 0:00:39]}  Qh2+ {[%clk 0:00:27]} 33. Kf1 {[%clk 0:00:39]}  Qh1+ {[%clk 0:00:26]} 34. Ke2 {[%clk 0:00:39]}  Qxg2+ {[%clk 0:00:26]} 35. Kd1 {[%clk 0:00:30]}  Qg1+ {[%clk 0:00:15]} 36. Kd2 {[%clk 0:00:26]}  Qd4+ {[%clk 0:00:14]} 37. Kc2 {[%clk 0:00:23]}  Ne3+ {[%clk 0:00:12]} 38. Kb1 {[%clk 0:00:19]}  Qd3+ {[%clk 0:00:11]} 39. Ka2 {[%clk 0:00:16]}  Qd2+ {[%clk 0:00:08]} 40. Kb1 {[%clk 0:00:14]}  Qc2+ {[%clk 0:00:08]} 41. Ka1 {[%clk 0:00:14]}  Qc1+ {[%clk 0:00:07]} 42. Ka2 {[%clk 0:00:14]}  Qd2+ {[%clk 0:00:07]} 43. Kb1 {[%clk 0:00:08]}  Qd1+ {[%clk 0:00:06]} 44. Ka2 {[%clk 0:00:07]}  Qe2+ {[%clk 0:00:06]} 45. Kb1 {[%clk 0:00:06]}  Qe1+ {[%clk 0:00:07]} 46. Ka2 {[%clk 0:00:06]}  Qd2+ {[%clk 0:00:07]} 1/2-1/2

[Event "December 19 Early 2023"]
[Site "https://www.chess.com"]
[Date "2023.12.19"]
[Round "10"]
[White "Yuan, Qingyu"]
[Black "Czerw, Dawid"]
[Result "1-0"]
[Board "80"]
[TimeControl "180+1"]
[WhiteFideId "8609772"]
[BlackFideId "1145746"]
[WhiteElo "2359"]
[BlackElo "2144"]
[WhiteTeam "CHN"]
[BlackTeam "POL"]
[WhiteClock "0:00:05"]
[BlackClock "0:00:00"]

1. e4 {[%clk 0:03:00]}  c6 {[%clk 0:02:59]} 2. d4 {[%clk 0:03:01]}  g6 {[%clk 0:02:58]} 3. Nf3 {[%clk 0:02:57]}  Bg7 {[%clk 0:02:57]} 4. h3 {[%clk 0:02:57]}  d5 {[%clk 0:02:58]} 5. e5 {[%clk 0:02:57]}  f6 {[%clk 0:02:57]} 6. Bf4 {[%clk 0:02:56]}  Nh6 {[%clk 0:02:57]} 7. Nbd2 {[%clk 0:02:55]}  Nf7 {[%clk 0:02:57]} 8. Bd3 {[%clk 0:02:52]}  Na6 {[%clk 0:02:56]} 9. c3 {[%clk 0:02:51]}  Nc7 {[%clk 0:02:56]} 10. Qe2 {[%clk 0:02:50]}  O-O {[%clk 0:02:54]} 11. O-O {[%clk 0:02:49]}  Ne6 {[%clk 0:02:51]} 12. Bh2 {[%clk 0:02:49]}  f5 {[%clk 0:02:51]} 13. a4 {[%clk 0:02:47]}  Bh6 {[%clk 0:02:49]} 14. a5 {[%clk 0:02:43]}  Neg5 {[%clk 0:02:47]} 15. Nxg5 {[%clk 0:02:34]}  Nxg5 {[%clk 0:02:45]} 16. Kh1 {[%clk 0:02:29]}  f4 {[%clk 0:02:37]} 17. Nf3 {[%clk 0:02:22]}  Bf5 {[%clk 0:02:30]} 18. Bxf5 {[%clk 0:02:14]}  Rxf5 {[%clk 0:02:29]} 19. Nxg5 {[%clk 0:02:01]}  Bxg5 {[%clk 0:02:26]} 20. f3 {[%clk 0:02:01]}  e6 {[%clk 0:02:24]} 21. Ra3 {[%clk 0:01:57]}  h5 {[%clk 0:02:16]} 22. Rfa1 {[%clk 0:01:55]}  Bh6 {[%clk 0:02:07]} 23. Rb3 {[%clk 0:01:43]}  Rf7 {[%clk 0:02:06]} 24. Qd3 {[%clk 0:01:41]}  Rg7 {[%clk 0:01:59]} 25. Ra4 {[%clk 0:01:21]}  Rc8 {[%clk 0:01:49]} 26. c4 {[%clk 0:01:17]}  dxc4 {[%clk 0:01:25]} 27. Rxc4 {[%clk 0:00:56]}  g5 {[%clk 0:01:22]} 28. a6 {[%clk 0:00:45]}  b5 {[%clk 0:01:09]} 29. Rc1 {[%clk 0:00:38]}  g4 {[%clk 0:01:08]} 30. Rbc3 {[%clk 0:00:31]}  gxh3 {[%clk 0:01:04]} 31. gxh3 {[%clk 0:00:30]}  Qh4 {[%clk 0:00:43]} 32. Qf1 {[%clk 0:00:30]}  Kh8 {[%clk 0:00:14]} 33. Rxc6 {[%clk 0:00:27]}  Rcg8 {[%clk 0:00:14]} 34. Rxe6 {[%clk 0:00:24]}  Bg5 {[%clk 0:00:05]} 35. d5 {[%clk 0:00:17]}  Bd8 {[%clk 0:00:03]} 36. Rh6+ {[%clk 0:00:16]}  Rh7 {[%clk 0:00:02]} 37. Rcc6 {[%clk 0:00:13]}  Rg3 {[%clk 0:00:01]} 38. Rxh7+ {[%clk 0:00:11]}  Kxh7 {[%clk 0:00:02]} 39. Bxg3 {[%clk 0:00:10]}  fxg3 {[%clk 0:00:02]} 40. Kg2 {[%clk 0:00:10]}  Qf4 {[%clk 0:00:02]} 41. Qe2 {[%clk 0:00:08]}  Bh4 {[%clk 0:00:00]} 42. Qc2+ {[%clk 0:00:05]} 1-0

[Event "December 19 Early 2023"]
[Site "https://www.chess.com"]
[Date "2023.12.19"]
[Round "10"]
[White "Hua, Lefong"]
[Black "Mazurkiewicz, Michal"]
[Result "1-0"]
[Board "81"]
[TimeControl "180+1"]
[WhiteFideId "2602253"]
[BlackFideId "1124943"]
[WhiteElo "2672"]
[BlackElo "2103"]
[WhiteTeam "CAN"]
[BlackTeam "POL"]
[WhiteClock "0:00:26"]
[BlackClock "0:00:03"]

1. d4 {[%clk 0:03:00]}  Nf6 {[%clk 0:02:59]} 2. c4 {[%clk 0:03:01]}  e5 {[%clk 0:02:59]} 3. dxe5 {[%clk 0:03:01]}  Ng4 {[%clk 0:03:00]} 4. Bf4 {[%clk 0:03:01]}  Nc6 {[%clk 0:02:59]} 5. Nf3 {[%clk 0:03:01]}  Bb4+ {[%clk 0:02:59]} 6. Nbd2 {[%clk 0:03:01]}  Qe7 {[%clk 0:02:56]} 7. e3 {[%clk 0:03:01]}  Ngxe5 {[%clk 0:02:54]} 8. Nxe5 {[%clk 0:03:02]}  Nxe5 {[%clk 0:02:54]} 9. Be2 {[%clk 0:03:02]}  d6 {[%clk 0:02:46]} 10. O-O {[%clk 0:03:02]}  a5 {[%clk 0:02:45]} 11. Nb3 {[%clk 0:02:51]}  a4 {[%clk 0:02:05]} 12. a3 {[%clk 0:02:48]}  Ba5 {[%clk 0:02:04]} 13. Nxa5 {[%clk 0:02:46]}  Rxa5 {[%clk 0:02:05]} 14. Qc2 {[%clk 0:02:39]}  O-O {[%clk 0:02:03]} 15. Rfd1 {[%clk 0:02:38]}  Be6 {[%clk 0:02:00]} 16. Rd4 {[%clk 0:02:28]}  b6 {[%clk 0:01:36]} 17. Rad1 {[%clk 0:02:20]}  g5 {[%clk 0:01:28]} 18. Bg3 {[%clk 0:02:18]}  f5 {[%clk 0:01:26]} 19. f4 {[%clk 0:02:03]}  Ng6 {[%clk 0:01:16]} 20. fxg5 {[%clk 0:01:54]}  Qxg5 {[%clk 0:01:14]} 21. Bf4 {[%clk 0:01:53]}  Qf6 {[%clk 0:01:04]} 22. Bf3 {[%clk 0:01:48]}  Rc5 {[%clk 0:01:03]} 23. Qxa4 {[%clk 0:01:28]}  Ne5 {[%clk 0:01:03]} 24. Bd5 {[%clk 0:01:23]}  Bxd5 {[%clk 0:01:00]} 25. cxd5 {[%clk 0:01:20]}  Kh8 {[%clk 0:00:36]} 26. Qb3 {[%clk 0:00:59]}  Rg8 {[%clk 0:00:34]} 27. Kh1 {[%clk 0:00:59]}  Ng4 {[%clk 0:00:33]} 28. R4d2 {[%clk 0:00:57]}  Re8 {[%clk 0:00:31]} 29. Qd3 {[%clk 0:00:54]}  b5 {[%clk 0:00:24]} 30. h3 {[%clk 0:00:43]}  Qh4 {[%clk 0:00:24]} 31. Kg1 {[%clk 0:00:41]}  Ne5 {[%clk 0:00:17]} 32. Qd4 {[%clk 0:00:41]}  Rc4 {[%clk 0:00:15]} 33. Bxe5+ {[%clk 0:00:41]}  Rxe5 {[%clk 0:00:13]} 34. Qxh4 {[%clk 0:00:40]}  Rxh4 {[%clk 0:00:13]} 35. Kf2 {[%clk 0:00:40]}  Rc4 {[%clk 0:00:12]} 36. Rd4 {[%clk 0:00:36]}  Rc2+ {[%clk 0:00:12]} 37. R1d2 {[%clk 0:00:36]}  Rxd2+ {[%clk 0:00:12]} 38. Rxd2 {[%clk 0:00:36]}  Kg7 {[%clk 0:00:12]} 39. Rc2 {[%clk 0:00:36]}  Rxd5 {[%clk 0:00:11]} 40. Rxc7+ {[%clk 0:00:36]}  Kg6 {[%clk 0:00:11]} 41. Ke2 {[%clk 0:00:37]}  Re5 {[%clk 0:00:11]} 42. Rc6 {[%clk 0:00:35]}  Re6 {[%clk 0:00:03]} 43. Kd3 {[%clk 0:00:32]}  Kg5 {[%clk 0:00:03]} 44. Rb6 {[%clk 0:00:33]}  Kh4 {[%clk 0:00:03]} 45. Rxb5 {[%clk 0:00:32]}  Kg3 {[%clk 0:00:01]} 46. Rxf5 {[%clk 0:00:32]}  Kxg2 {[%clk 0:00:02]} 47. Rh5 {[%clk 0:00:33]}  Kf2 {[%clk 0:00:02]} 48. Rf5+ {[%clk 0:00:32]}  Kg3 {[%clk 0:00:02]} 49. a4 {[%clk 0:00:30]}  Re7 {[%clk 0:00:02]} 50. a5 {[%clk 0:00:26]}  Kxh3 {[%clk 0:00:02]} 51. a6 {[%clk 0:00:27]}  Kg4 {[%clk 0:00:03]} 52. Ra5 {[%clk 0:00:27]}  Ra7 {[%clk 0:00:03]} 53. b4 {[%clk 0:00:27]}  h5 {[%clk 0:00:04]} 54. b5 {[%clk 0:00:28]}  h4 {[%clk 0:00:04]} 55. b6 {[%clk 0:00:28]}  Ra8 {[%clk 0:00:04]} 56. b7 {[%clk 0:00:29]}  Rb8 {[%clk 0:00:04]} 57. a7 {[%clk 0:00:29]}  Rxb7 {[%clk 0:00:04]} 58. a8=Q {[%clk 0:00:30]}  Rb3+ {[%clk 0:00:04]} 59. Kd2 {[%clk 0:00:29]}  Rb2+ {[%clk 0:00:04]} 60. Kc3 {[%clk 0:00:30]}  Rf2 {[%clk 0:00:03]} 61. Qg8+ {[%clk 0:00:29]}  Kh3 {[%clk 0:00:03]} 62. Qe6+ {[%clk 0:00:26]} 1-0

[Event "December 19 Early 2023"]
[Site "https://www.chess.com"]
[Date "2023.12.19"]
[Round "10"]
[White "Ovetchkin, Roman"]
[Black "Hrebenshchykova, Yelyzaveta"]
[Result "1-0"]
[Board "82"]
[TimeControl "180+1"]
[WhiteFideId "4119991"]
[BlackFideId "14159899"]
[WhiteElo "2381"]
[BlackElo "2045"]
[WhiteTeam "RUS"]
[BlackTeam "UKR"]
[WhiteClock "0:00:10"]
[BlackClock "0:00:00"]

1. d4 {[%clk 0:03:00]}  Nf6 {[%clk 0:02:59]} 2. c4 {[%clk 0:02:59]}  e6 {[%clk 0:02:59]} 3. g3 {[%clk 0:02:59]}  d5 {[%clk 0:02:59]} 4. Bg2 {[%clk 0:02:59]}  dxc4 {[%clk 0:02:56]} 5. Nf3 {[%clk 0:02:59]}  a6 {[%clk 0:02:53]} 6. O-O {[%clk 0:02:59]}  Nc6 {[%clk 0:02:47]} 7. Bg5 {[%clk 0:02:56]}  Be7 {[%clk 0:02:37]} 8. e3 {[%clk 0:02:57]}  Bd7 {[%clk 0:02:26]} 9. Qe2 {[%clk 0:02:26]}  b5 {[%clk 0:02:16]} 10. b3 {[%clk 0:02:26]}  cxb3 {[%clk 0:02:05]} 11. axb3 {[%clk 0:02:25]}  O-O {[%clk 0:01:58]} 12. Rc1 {[%clk 0:02:24]}  Ra7 {[%clk 0:01:43]} 13. Nc3 {[%clk 0:02:03]}  Nb4 {[%clk 0:01:42]} 14. Ne5 {[%clk 0:01:56]}  Be8 {[%clk 0:01:29]} 15. Na2 {[%clk 0:00:44]}  Nfd5 {[%clk 0:01:18]} 16. Bxe7 {[%clk 0:00:42]}  Qxe7 {[%clk 0:01:19]} 17. Nd3 {[%clk 0:00:42]}  Nxd3 {[%clk 0:01:12]} 18. Qxd3 {[%clk 0:00:41]}  c6 {[%clk 0:01:08]} 19. Nc3 {[%clk 0:00:32]}  Nb4 {[%clk 0:01:07]} 20. Qd2 {[%clk 0:00:30]}  f5 {[%clk 0:01:06]} 21. Ne2 {[%clk 0:00:29]}  Bd7 {[%clk 0:01:04]} 22. Rc5 {[%clk 0:00:28]}  a5 {[%clk 0:01:02]} 23. h4 {[%clk 0:00:25]}  Rfa8 {[%clk 0:00:45]} 24. Nf4 {[%clk 0:00:23]}  Nd5 {[%clk 0:00:34]} 25. Bxd5 {[%clk 0:00:18]}  exd5 {[%clk 0:00:35]} 26. Rc2 {[%clk 0:00:17]}  a4 {[%clk 0:00:35]} 27. Rca2 {[%clk 0:00:17]}  a3 {[%clk 0:00:30]} 28. b4 {[%clk 0:00:17]}  Ra4 {[%clk 0:00:30]} 29. Nd3 {[%clk 0:00:17]}  Be8 {[%clk 0:00:09]} 30. Nc5 {[%clk 0:00:16]}  R4a7 {[%clk 0:00:10]} 31. Qc3 {[%clk 0:00:16]}  g5 {[%clk 0:00:05]} 32. hxg5 {[%clk 0:00:15]}  Qxg5 {[%clk 0:00:06]} 33. Rxa3 {[%clk 0:00:15]}  Rxa3 {[%clk 0:00:06]} 34. Rxa3 {[%clk 0:00:15]}  Rc8 {[%clk 0:00:06]} 35. Ne6 {[%clk 0:00:12]}  Qf6 {[%clk 0:00:06]} 36. Nf4 {[%clk 0:00:13]}  h5 {[%clk 0:00:05]} 37. Nxd5 {[%clk 0:00:13]}  Qg7 {[%clk 0:00:03]} 38. Qc5 {[%clk 0:00:12]}  Rd8 {[%clk 0:00:01]} 39. Nf4 {[%clk 0:00:11]}  h4 {[%clk 0:00:01]} 40. Qxf5 {[%clk 0:00:11]}  hxg3 {[%clk 0:00:00]} 41. Ne6 {[%clk 0:00:10]} 1-0